fUST/lending_fUST_20250930
["ID","MTS","AMOUNT","RATE_DAILY","PERIOD"]
[388452490,1759175301530,-480.0,0.00022826,2]
[388452491,1759175301557,-1981.01,0.00022826,2]
[388452492,1759175301585,-480.0,0.00022826,2]
[388452493,1759175301615,-480.0,0.00022826,2]
[388452494,1759175301645,-534.48223388,0.00022826,2]
[388452495,1759175301743,-381.42536113,0.00022826,2]
[388452496,1759175301776,-500.0,0.00022826,2]
[388452497,1759175301805,-411.55731942,0.00022826,2]
[388452498,1759175301834,-198.37716053,0.00022826,2]
[388452499,1759175301863,-500.0,0.00022826,2]
[388452500,1759175301891,-158.98646636,0.00022826,2]
[388452501,1759175301920,-156.46430202,0.00022826,2]
[388452502,1759175301948,-500.0,0.00022826,2]
[388452503,1759175302485,-484.14022644,0.00022501,13]
[388452504,1759175302799,-4255.18873864,0.00022827,2]
[388452505,1759175302857,-484.14022644,0.00022827,2]
[388452506,1759175302875,-9031.72954712,0.00022827,2]
[388452507,1759175302892,-10000.01,0.00022827,2]
[388452508,1759175302916,-10000.01,0.00022827,2]
[388452509,1759175302932,-10000.01,0.00022827,2]
[388452510,1759175302951,-10000.01,0.00022827,2]
[388452511,1759175320840,-5000.0,0.00022594,13]
[388452512,1759175320880,-0.01,0.00022822,2]
[388452513,1759175340846,-5000.0,0.00021575,13]
[388452514,1759175340887,-0.01,0.00021793,2]
[388452516,1759175358679,-153.2787178,0.00021145,13]
[388452517,1759175360982,-4846.7212822,0.00021145,13]
[388452518,1759175361019,-306.5674356,0.00021359,13]
[388452519,1759175371094,-1367.17568265,0.00021359,13]
[388452520,1759175385647,-196.326481,0.00021575,2]
[388452521,1759175389903,-248.90214496,0.00021575,2]
[388452522,1759175393039,-343.63397483,0.00021575,2]
[388452523,1759175401387,-171.67346954,0.00021575,2]
[388452554,1759175432124,-892.08187806,0.00021575,2]
[388452555,1759175432133,-110.54980021,0.00021693,2]
[388452560,1759175432178,-297.34686479,0.00021693,2]
[388452562,1759175432188,-149.99,0.00021793,2]
[388452564,1759175432198,-1021.83880471,0.00021793,2]
[388452566,1759175432207,-196.326481,0.00021886,2]
[388452568,1759175432216,-1200.0,0.00021988,2]
[388452571,1759175432226,-300.0,0.00021989,2]
[388452575,1759175432236,-300.0,0.00021989,2]
[388452579,1759175432246,-300.0,0.00021989,2]
[388452583,1759175432255,-300.0,0.00021989,2]
[388452586,1759175432265,-300.0,0.00021989,2]
[388452590,1759175432275,-50000.0,0.00021989,2]
[388452594,1759175432285,-5000.0,0.00022594,13]
[388452597,1759175432297,-8344.28963858,0.00022773,2]
[388452600,1759175432307,-150.0,0.00022793,2]
[388452601,1759175432317,-466.43,0.00022819,3]
[388452604,1759175432327,-736.28,0.00022822,2]
[388452606,1759175432338,-550.18,0.00022822,2]
[388452608,1759175432348,-5517.91,0.00022822,2]
[388452610,1759175432357,-1042.2,0.00022822,2]
[388452612,1759175432370,-480.17367363,0.00022822,2]
[388452614,1759175432380,-2461.32,0.00022822,2]
[388452615,1759175432389,-817.56,0.00022822,2]
[388452617,1759175432399,-1915.55705332,0.00022822,2]
[388452711,1759175437997,-5000.0,0.00021768,2]
[388452713,1759175438007,-197.41265192,0.00021988,2]
[388452715,1759175438016,-321.75952616,0.00021988,2]
[388452716,1759175438026,-500.0,0.00021988,2]
[388452717,1759175438036,-357.21225523,0.00021988,2]
[388452718,1759175438045,-500.0,0.00021988,2]
[388452719,1759175438054,-178.53944447,0.00021988,2]
[388452720,1759175438064,-500.0,0.00021988,2]
[388452721,1759175438287,-174.41954359,0.00021988,2]
[388452722,1759175438298,-257.23,0.00022812,10]
[388452723,1759175438307,-853.27294668,0.00022822,2]
[388452724,1759175438320,-480.0,0.00022822,2]
[388452725,1759175438330,-899.26,0.00022822,2]
[388452726,1759175438340,-628.9,0.00022822,2]
[388452727,1759175438350,-480.0,0.00022822,2]
[388452728,1759175438360,-480.0,0.00022822,2]
[388452729,1759175438369,-741.9,0.00022822,2]
[388452730,1759175438380,-866.04,0.00022822,2]
[388452731,1759175438390,-633.11,0.00022822,2]
[388452732,1759175438399,-480.0,0.00022822,2]
[388452733,1759175438408,-5907.31,0.00022822,2]
[388452734,1759175438418,-480.0,0.00022822,2]
[388452735,1759175438427,-480.0,0.00022822,2]
[388452736,1759175438436,-480.0,0.00022822,2]
[388452737,1759175438446,-480.0,0.00022822,2]
[388452738,1759175438455,-630.21,0.00022822,2]
[388452739,1759175438464,-480.0,0.00022822,2]
[388452740,1759175438474,-480.0,0.00022822,2]
[388452741,1759175438484,-1483.05,0.00022822,2]
[388452742,1759175438494,-1935.37,0.00022822,2]
[388452743,1759175438503,-480.0,0.00022822,2]
[388452744,1759175438513,-1360.56,0.00022822,2]
[388452745,1759175438523,-480.0,0.00022822,2]
[388452746,1759175438532,-480.0,0.00022822,2]
[388452747,1759175438541,-1101.37,0.00022822,2]
[388452748,1759175438550,-546.45,0.00022822,2]
[388452749,1759175438559,-480.0,0.00022822,2]
[388452750,1759175438572,-500.0,0.00022822,2]
[388452751,1759175438582,-480.0,0.00022822,2]
[388452752,1759175438591,-480.0,0.00022826,2]
[388452753,1759175438601,-480.0,0.00022826,2]
[388452754,1759175438611,-423.46784794,0.00022826,2]
[388452755,1759175438620,-482.38821703,0.00022826,2]
[388452756,1759175438630,-480.0,0.00022826,2]
[388452757,1759175438639,-480.0,0.00022826,2]
[388452758,1759175438649,-480.0,0.00022826,2]
[388452759,1759175438659,-480.0,0.00022826,2]
[388452760,1759175438668,-480.0,0.00022826,2]
[388452761,1759175438677,-672.43,0.00022826,2]
[388452762,1759175438687,-480.0,0.00022826,2]
[388452763,1759175438697,-489.12,0.00022826,2]
[388452764,1759175438706,-632.71,0.00022826,2]
[388452765,1759175438718,-480.0,0.00022826,2]
[388452766,1759175438728,-327.48792056,0.00022826,2]
[388452767,1759175438737,-573.34,0.00022826,2]
[388452768,1759175438746,-2197.93,0.00022826,2]
[388452769,1759175438756,-480.0,0.00022826,2]
[388452770,1759175438765,-939.7,0.00022826,2]
[388452771,1759175438775,-480.0,0.00022826,2]
[388452772,1759175438784,-480.0,0.00022826,2]
[388452773,1759175438793,-480.0,0.00022826,2]
[388452774,1759175438803,-564.41,0.00022826,2]
[388452775,1759175438813,-480.0,0.00022826,2]
[388452776,1759175438824,-480.0,0.00022826,2]
[388452777,1759175438834,-480.0,0.00022826,2]
[388452778,1759175438844,-480.0,0.00022826,2]
[388452779,1759175438855,-480.0,0.00022826,2]
[388452780,1759175438865,-2026.91,0.00022826,2]
[388452781,1759175438875,-402.17092257,0.00022826,2]
[388452782,1759175438885,-554.48,0.00022826,2]
[388452783,1759175438895,-480.0,0.00022826,2]
[388452784,1759175438905,-377.54326402,0.00022826,2]
[388452785,1759175438915,-480.0,0.00022826,2]
[388452786,1759175438925,-513.92,0.00022826,2]
[388452787,1759175438936,-758.25,0.00022826,2]
[388452788,1759175438946,-3730.17,0.00022826,2]
[388452789,1759175438955,-480.0,0.00022826,2]
[388452790,1759175438966,-480.0,0.00022826,2]
[388452791,1759175438975,-480.0,0.00022826,2]
[388452792,1759175438984,-480.0,0.00022826,2]
[388452793,1759175438994,-9332.11,0.00022826,2]
[388452794,1759175439004,-481.96154604,0.00022826,2]
[388452795,1759175439014,-671.44,0.00022826,2]
[388452796,1759175439023,-480.0,0.00022826,2]
[388452797,1759175439033,-386.06703618,0.00022826,2]
[388452798,1759175439043,-480.0,0.00022826,2]
[388452799,1759175439053,-480.0,0.00022826,2]
[388452800,1759175439062,-482.03596892,0.00022826,2]
[388452801,1759175439073,-480.0,0.00022826,2]
[388452802,1759175439083,-1501.44,0.00022826,2]
[388452803,1759175439093,-480.0,0.00022826,2]
[388452804,1759175439103,-480.0,0.00022826,2]
[388452805,1759175439112,-1367.64,0.00022826,2]
[388452806,1759175439122,-480.0,0.00022826,2]
[388452807,1759175439131,-480.0,0.00022826,2]
[388452808,1759175439141,-3789.72,0.00022826,2]
[388452809,1759175439151,-1349.65,0.00022826,2]
[388452810,1759175439160,-3131.58,0.00022826,2]
[388452811,1759175439170,-871.93,0.00022826,2]
[388452812,1759175439180,-2103.73,0.00022826,2]
[388452813,1759175439189,-480.0,0.00022826,2]
[388452814,1759175439199,-480.0,0.00022826,2]
[388452815,1759175439209,-480.0,0.00022826,2]
[388452816,1759175439220,-480.0,0.00022826,2]
[388452817,1759175439230,-480.0,0.00022826,2]
[388452818,1759175439239,-480.0,0.00022826,2]
[388452819,1759175439249,-480.0,0.00022826,2]
[388452820,1759175439258,-480.0,0.00022826,2]
[388452821,1759175439268,-522.75,0.00022826,2]
[388452822,1759175439278,-480.0,0.00022826,2]
[388452823,1759175439288,-532.8572633,0.00022826,2]
[388452824,1759175439297,-480.0,0.00022826,2]
[388452825,1759175439307,-500.0,0.00022826,2]
[388452826,1759175439318,-824.56180852,0.00022827,2]
[388452827,1759175439328,-151.0,0.00022827,2]
[388452828,1759175439337,-151.0,0.00022827,2]
[388452829,1759175439347,-151.0,0.00022827,2]
[388452830,1759175439356,-151.0,0.00022827,2]
[388452831,1759175439365,-153.39946615,0.00022827,2]
[388452832,1759175439376,-117576.36667449,0.00022827,2]
[388452833,1759175439386,-506.0,0.00022828,2]
[388452834,1759175439396,-1715.7,0.00022829,2]
[388452835,1759175439406,-1715.7,0.00022829,2]
[388452836,1759175439416,-1715.7,0.00022829,2]
[388452837,1759175439425,-1715.7,0.00022829,2]
[388452838,1759175439435,-1715.7,0.00022829,2]
[388452839,1759175439444,-1715.77130718,0.00022829,2]
[388452840,1759175439454,-200.0,0.00022829,10]
[388452841,1759175439464,-200.0,0.00022829,10]
[388452842,1759175439474,-200.0,0.00022829,10]
[388452843,1759175439484,-200.0,0.00022829,10]
[388452844,1759175439493,-200.0,0.00022829,10]
[388452845,1759175439502,-200.0,0.00022829,10]
[388452846,1759175439512,-177.118955,0.00022829,10]
[388452848,1759175439522,-480.0,0.0002283,2]
[388452850,1759175439533,-480.0,0.0002283,2]
[388452852,1759175439543,-310.94,0.00022863,3]
[388452854,1759175439552,-155.47,0.00022863,3]
[388452856,1759175439562,-500.0,0.00022873,2]
[388452858,1759175439573,-414.23417332,0.00022873,2]
[388452859,1759175439582,-420.63279281,0.00022873,2]
[388452860,1759175439591,-500.0,0.00022873,2]
[388452861,1759175439601,-500.0,0.00022873,2]
[388452862,1759175439611,-500.0,0.00022873,2]
[388452863,1759175439620,-500.0,0.00022873,2]
[388452864,1759175439629,-451.61334099,0.00022873,2]
[388452865,1759175439638,-500.0,0.00022873,2]
[388452866,1759175439647,-500.0,0.00022873,2]
[388452867,1759175439656,-500.0,0.00022873,2]
[388452868,1759175439666,-500.0,0.00022873,2]
[388452869,1759175439675,-500.0,0.00022873,2]
[388452870,1759175439684,-500.0,0.00022873,2]
[388452871,1759175439693,-500.0,0.00022873,2]
[388452872,1759175439703,-500.0,0.00022873,2]
[388452873,1759175439718,-500.0,0.00022873,2]
[388452875,1759175439727,-500.0,0.00022873,2]
[388452876,1759175439736,-500.0,0.00022873,2]
[388452878,1759175439745,-500.0,0.00022873,2]
[388452880,1759175439755,-502.64759426,0.00022873,2]
[388452882,1759175439764,-500.0,0.00022873,2]
[388452883,1759175439774,-1000.0,0.00022883,2]
[388452884,1759175439786,-483.99922484,0.00022883,2]
[388452885,1759175439795,-250.0,0.00022883,2]
[388452886,1759175439804,-200.0,0.00022883,2]
[388452887,1759175439813,-250.0,0.00022883,2]
[388452888,1759175439823,-200.0,0.00022883,2]
[388452889,1759175439832,-200.0,0.00022883,2]
[388452891,1759175439841,-250.0,0.00022883,2]
[388452893,1759175439849,-200.0,0.00022883,2]
[388452895,1759175439858,-168.56119286,0.00022883,2]
[388452897,1759175439867,-250.0,0.00022883,2]
[388452899,1759175439876,-250.0,0.00022883,2]
[388452900,1759175439885,-250.0,0.00022883,2]
[388452902,1759175439894,-250.0,0.00022883,2]
[388452904,1759175439903,-250.0,0.00022883,2]
[388452906,1759175439913,-282.15011065,0.00022883,2]
[388452907,1759175439922,-500.0,0.00022883,2]
[388452909,1759175439931,-500.0,0.00022883,2]
[388452911,1759175439941,-481.94443751,0.00022883,2]
[388452912,1759175439950,-151.0,0.00022883,2]
[388452913,1759175439959,-480.0,0.00022897,2]
[388452914,1759175439968,-480.0,0.00022897,2]
[388452915,1759175439978,-480.0,0.00022897,2]
[388452916,1759175439988,-480.0,0.00022897,2]
[388452918,1759175439997,-500.0,0.00022897,2]
[388452919,1759175440007,-500.0,0.00022897,2]
[388452920,1759175440016,-500.0,0.00022897,2]
[388452921,1759175440025,-480.0,0.00022897,2]
[388452922,1759175440035,-480.0,0.00022897,2]
[388452923,1759175440044,-480.0,0.00022897,2]
[388452925,1759175440053,-360.23164017,0.00022897,2]
[388452927,1759175440063,-480.0,0.00022897,2]
[388452929,1759175440073,-480.0,0.00022897,2]
[388452931,1759175440082,-480.0,0.00022897,2]
[388452932,1759175440091,-480.0,0.00022897,2]
[388452934,1759175440100,-480.0,0.00022897,2]
[388452936,1759175440110,-647.82,0.00022897,2]
[388452938,1759175440119,-480.0,0.00022897,2]
[388452940,1759175440128,-480.0,0.00022897,2]
[388452942,1759175440137,-480.0,0.00022897,2]
[388452943,1759175440146,-481.01703753,0.00022897,2]
[388452945,1759175440156,-453.39304695,0.00022897,2]
[388452946,1759175440164,-480.0,0.00022897,2]
[388452947,1759175440174,-520.26,0.00022897,2]
[388452948,1759175440183,-177.83949429,0.00022897,2]
[388452949,1759175440192,-480.0,0.00022897,2]
[388452950,1759175440201,-480.0,0.00022897,2]
[388452951,1759175440211,-480.0,0.00022897,2]
[388452952,1759175440220,-480.0,0.00022897,2]
[388452953,1759175440229,-641.12,0.00022897,2]
[388452954,1759175440238,-480.0,0.00022897,2]
[388452955,1759175440248,-480.0,0.00022897,2]
[388452956,1759175440257,-480.0,0.00022897,2]
[388452957,1759175440266,-480.0,0.00022897,2]
[388452958,1759175440276,-481.48808713,0.00022897,2]
[388452959,1759175440285,-480.0,0.00022897,2]
[388452960,1759175440295,-482.91406733,0.00022897,2]
[388452961,1759175440304,-615.42,0.00022897,2]
[388452962,1759175440314,-480.0,0.00022897,2]
[388452963,1759175440323,-480.0,0.00022897,2]
[388452964,1759175440333,-480.0,0.00022897,2]
[388452965,1759175440342,-480.0,0.00022897,2]
[388452966,1759175440351,-480.0,0.00022897,2]
[388452967,1759175440361,-480.0,0.00022897,2]
[388452968,1759175440371,-480.0,0.00022897,2]
[388452969,1759175440380,-480.0,0.00022897,2]
[388452970,1759175440390,-480.0,0.00022897,2]
[388452971,1759175440399,-297.36471193,0.00022897,2]
[388452972,1759175440409,-798.31,0.00022897,2]
[388452973,1759175440418,-480.0,0.00022897,2]
[388452974,1759175440427,-480.0,0.00022897,2]
[388452975,1759175440437,-480.0,0.00022897,2]
[388452976,1759175440446,-480.0,0.00022897,2]
[388452977,1759175440455,-326.95579529,0.00022897,2]
[388452978,1759175440464,-480.0,0.00022897,2]
[388452979,1759175440474,-482.83070491,0.00022897,2]
[388452980,1759175440484,-480.0,0.00022897,2]
[388452981,1759175440493,-480.0,0.00022897,2]
[388452982,1759175440503,-480.0,0.00022897,2]
[388452983,1759175440512,-480.0,0.00022897,2]
[388452984,1759175440521,-480.0,0.00022897,2]
[388452985,1759175440531,-480.0,0.00022897,2]
[388452986,1759175440540,-480.0,0.00022897,2]
[388452987,1759175440550,-480.0,0.00022897,2]
[388452988,1759175440560,-480.0,0.00022897,2]
[388452989,1759175440570,-600.0,0.00022897,2]
[388452990,1759175440579,-480.0,0.00022897,2]
[388452991,1759175440588,-480.0,0.00022897,2]
[388452992,1759175440597,-480.0,0.00022897,2]
[388452993,1759175440607,-480.0,0.00022897,2]
[388452994,1759175440616,-480.0,0.00022897,2]
[388452995,1759175440626,-480.0,0.00022897,2]
[388452996,1759175440635,-480.0,0.00022897,2]
[388452997,1759175440644,-480.0,0.00022897,2]
[388452998,1759175440654,-480.0,0.00022897,2]
[388452999,1759175440663,-480.0,0.00022897,2]
[388453000,1759175440672,-685.03,0.00022897,2]
[388453001,1759175440681,-480.0,0.00022897,2]
[388453002,1759175440691,-480.0,0.00022897,2]
[388453003,1759175440700,-480.0,0.00022897,2]
[388453004,1759175440711,-480.0,0.00022897,2]
[388453005,1759175440720,-594.81,0.00022897,2]
[388453006,1759175440729,-480.0,0.00022897,2]
[388453007,1759175440738,-480.0,0.00022897,2]
[388453008,1759175440751,-480.0,0.00022897,2]
[388453009,1759175440760,-480.0,0.00022897,2]
[388453010,1759175440769,-210.77066295,0.00022897,2]
[388453011,1759175440778,-480.0,0.00022897,2]
[388453012,1759175440788,-1601.04,0.00022897,2]
[388453013,1759175440797,-480.0,0.00022897,2]
[388453014,1759175440806,-480.0,0.00022897,2]
[388453015,1759175440815,-480.0,0.00022897,2]
[388453016,1759175440824,-480.0,0.00022897,2]
[388453017,1759175440834,-714.34,0.00022897,2]
[388453018,1759175440843,-480.0,0.00022897,2]
[388453019,1759175440852,-1069.38,0.00022897,2]
[388453020,1759175440861,-480.0,0.00022897,2]
[388453021,1759175440870,-480.0,0.00022897,2]
[388453022,1759175440879,-480.0,0.00022897,2]
[388453023,1759175440888,-480.0,0.00022897,2]
[388453024,1759175440897,-522.42,0.00022897,2]
[388453025,1759175440906,-480.0,0.00022897,2]
[388453026,1759175440915,-480.0,0.00022897,2]
[388453027,1759175440924,-480.0,0.00022897,2]
[388453028,1759175440933,-480.0,0.00022897,2]
[388453029,1759175440942,-575.73,0.00022897,2]
[388453030,1759175440951,-480.0,0.00022897,2]
[388453031,1759175440961,-1000.0,0.00022897,2]
[388453032,1759175440970,-480.0,0.00022897,2]
[388453033,1759175440979,-480.0,0.00022897,2]
[388453034,1759175440990,-480.0,0.00022897,2]
[388453035,1759175440999,-480.74465385,0.00022897,2]
[388453036,1759175441010,-480.0,0.00022897,2]
[388453037,1759175441019,-480.0,0.00022897,2]
[388453038,1759175441029,-480.0,0.00022897,2]
[388453039,1759175441038,-480.0,0.00022897,2]
[388453040,1759175441047,-480.0,0.00022897,2]
[388453041,1759175441057,-500.0,0.00022897,2]
[388453042,1759175441066,-480.0,0.00022897,2]
[388453043,1759175441076,-480.0,0.00022897,2]
[388453044,1759175441086,-500.0,0.00022897,2]
[388453045,1759175441095,-480.0,0.00022897,2]
[388453046,1759175441104,-480.0,0.00022897,2]
[388453047,1759175441114,-480.0,0.00022897,2]
[388453048,1759175441123,-480.0,0.00022897,2]
[388453049,1759175441132,-480.0,0.00022897,2]
[388453050,1759175441142,-1693.78,0.00022897,2]
[388453051,1759175441151,-480.0,0.00022897,2]
[388453052,1759175441160,-480.0,0.00022897,2]
[388453053,1759175441170,-480.0,0.00022897,2]
[388453054,1759175441179,-480.0,0.00022897,2]
[388453055,1759175441189,-522.58,0.00022897,2]
[388453056,1759175441198,-480.0,0.00022897,2]
[388453057,1759175441208,-550.3,0.00022897,2]
[388453058,1759175441217,-480.0,0.00022897,2]
[388453059,1759175441227,-480.0,0.00022897,2]
[388453060,1759175441237,-480.0,0.00022897,2]
[388453061,1759175441247,-480.0,0.00022897,2]
[388453062,1759175441256,-480.0,0.00022897,2]
[388453063,1759175441265,-480.0,0.00022897,2]
[388453064,1759175441275,-480.0,0.00022897,2]
[388453065,1759175441284,-480.0,0.00022897,2]
[388453066,1759175441294,-481.62728696,0.00022897,2]
[388453067,1759175441303,-480.0,0.00022897,2]
[388453068,1759175441313,-480.0,0.00022897,2]
[388453069,1759175441322,-563.72,0.00022897,2]
[388453070,1759175441332,-480.0,0.00022897,2]
[388453071,1759175441341,-480.0,0.00022897,2]
[388453072,1759175441351,-480.0,0.00022897,2]
[388453073,1759175441361,-480.0,0.00022897,2]
[388453074,1759175441370,-480.0,0.00022897,2]
[388453075,1759175441379,-480.0,0.00022897,2]
[388453076,1759175441389,-480.0,0.00022897,2]
[388453077,1759175441398,-480.0,0.00022897,2]
[388453078,1759175441408,-480.0,0.00022897,2]
[388453079,1759175441417,-480.0,0.00022897,2]
[388453080,1759175441426,-480.0,0.00022897,2]
[388453081,1759175441436,-480.0,0.00022897,2]
[388453082,1759175441446,-480.0,0.00022897,2]
[388453083,1759175441455,-480.0,0.00022897,2]
[388453084,1759175441466,-545.51,0.00022897,2]
[388453085,1759175441475,-480.0,0.00022897,2]
[388453086,1759175441484,-480.0,0.00022897,2]
[388453087,1759175441494,-480.0,0.00022897,2]
[388453088,1759175441503,-480.0,0.00022897,2]
[388453089,1759175441512,-480.0,0.00022897,2]
[388453090,1759175441522,-480.0,0.00022897,2]
[388453091,1759175441531,-480.0,0.00022897,2]
[388453092,1759175441541,-480.0,0.00022897,2]
[388453093,1759175441551,-480.0,0.00022897,2]
[388453094,1759175441560,-480.0,0.00022897,2]
[388453095,1759175441570,-518.34,0.00022897,2]
[388453096,1759175441579,-480.0,0.00022897,2]
[388453097,1759175441588,-480.0,0.00022897,2]
[388453098,1759175441599,-480.0,0.00022897,2]
[388453099,1759175441608,-480.0,0.00022897,2]
[388453100,1759175441617,-1153.42,0.00022897,2]
[388453101,1759175441627,-480.5,0.00022897,2]
[388453102,1759175441636,-1014.05,0.00022897,2]
[388453103,1759175441646,-520.24,0.00022897,2]
[388453104,1759175441656,-480.0,0.00022897,2]
[388453105,1759175441665,-480.0,0.00022897,2]
[388453106,1759175441675,-486.07500806,0.00022897,2]
[388453107,1759175441685,-480.0,0.00022897,2]
[388453108,1759175441695,-480.0,0.00022897,2]
[388453109,1759175441704,-527.16,0.00022897,2]
[388453110,1759175441718,-480.0,0.00022897,2]
[388453111,1759175441728,-480.0,0.00022897,2]
[388453112,1759175441737,-480.0,0.00022897,2]
[388453113,1759175441747,-480.0,0.00022897,2]
[388453114,1759175441758,-480.0,0.00022897,2]
[388453115,1759175441768,-480.0,0.00022897,2]
[388453116,1759175441778,-480.0,0.00022897,2]
[388453117,1759175441790,-480.0,0.00022897,2]
[388453118,1759175441800,-611.37,0.00022897,2]
[388453119,1759175441809,-1010.33,0.00022897,2]
[388453120,1759175441821,-504.25,0.00022897,2]
[388453121,1759175441830,-480.0,0.00022897,2]
[388453122,1759175441841,-480.0,0.00022897,2]
[388453123,1759175441851,-480.0,0.00022897,2]
[388453124,1759175441861,-480.0,0.00022897,2]
[388453125,1759175441871,-480.0,0.00022897,2]
[388453126,1759175441881,-612.43,0.00022897,2]
[388453127,1759175441890,-480.0,0.00022897,2]
[388453128,1759175441901,-480.0,0.00022897,2]
[388453129,1759175441910,-483.06591017,0.00022897,2]
[388453130,1759175441919,-480.0,0.00022897,2]
[388453131,1759175441930,-480.0,0.00022897,2]
[388453132,1759175441939,-480.0,0.00022897,2]
[388453133,1759175441949,-480.0,0.00022897,2]
[388453134,1759175441959,-480.0,0.00022897,2]
[388453135,1759175441969,-480.0,0.00022897,2]
[388453136,1759175441979,-480.0,0.00022897,2]
[388453137,1759175441988,-480.0,0.00022897,2]
[388453138,1759175441998,-480.0,0.00022897,2]
[388453139,1759175442009,-480.0,0.00022897,2]
[388453140,1759175442019,-480.0,0.00022897,2]
[388453141,1759175442029,-480.0,0.00022897,2]
[388453142,1759175442039,-480.0,0.00022897,2]
[388453143,1759175442050,-666.94,0.00022897,2]
[388453144,1759175442059,-480.0,0.00022897,2]
[388453145,1759175442071,-480.0,0.00022897,2]
[388453146,1759175442081,-484.39,0.00022897,2]
[388453147,1759175442090,-1662.43,0.00022897,2]
[388453148,1759175442099,-480.0,0.00022897,2]
[388453149,1759175442109,-480.0,0.00022897,2]
[388453150,1759175442120,-480.0,0.00022897,2]
[388453151,1759175442129,-864.52,0.00022897,2]
[388453152,1759175442139,-480.0,0.00022897,2]
[388453153,1759175442148,-365.14262626,0.00022897,2]
[388453154,1759175442157,-480.0,0.00022897,2]
[388453155,1759175442167,-2084.61,0.00022897,2]
[388453156,1759175442177,-480.0,0.00022897,2]
[388453157,1759175442187,-480.0,0.00022897,2]
[388453158,1759175442197,-480.0,0.00022897,2]
[388453159,1759175442206,-1000.0,0.00022897,2]
[388453160,1759175442216,-480.0,0.00022897,2]
[388453161,1759175442226,-480.0,0.00022897,2]
[388453162,1759175442235,-480.0,0.00022897,2]
[388453163,1759175442244,-480.0,0.00022897,2]
[388453164,1759175442254,-480.0,0.00022897,2]
[388453165,1759175442263,-575.84,0.00022897,2]
[388453166,1759175442273,-480.0,0.00022897,2]
[388453167,1759175442283,-480.0,0.00022897,2]
[388453168,1759175442292,-480.0,0.00022897,2]
[388453169,1759175442302,-480.0,0.00022897,2]
[388453170,1759175442311,-565.04,0.00022897,2]
[388453171,1759175442322,-480.0,0.00022897,2]
[388453172,1759175442332,-480.0,0.00022897,2]
[388453173,1759175442515,-480.0,0.00022897,2]
[388453174,1759175442525,-480.0,0.00022897,2]
[388453175,1759175442535,-745.36,0.00022897,2]
[388453176,1759175442544,-480.0,0.00022897,2]
[388453178,1759175442554,-480.0,0.00022897,2]
[388453180,1759175442563,-480.0,0.00022897,2]
[388453182,1759175442574,-480.0,0.00022897,2]
[388453184,1759175442584,-536.46,0.00022897,2]
[388453186,1759175442594,-480.0,0.00022897,2]
[388453187,1759175442603,-480.0,0.00022897,2]
[388453189,1759175442613,-522.59,0.00022897,2]
[388453190,1759175442622,-480.0,0.00022897,2]
[388453191,1759175442632,-480.0,0.00022897,2]